[Event "Polish Youth G18 Championship 2023"]
[Site "Jastrzebia Gora"]
[Date "2023.03.12"]
[Round "1.14"]
[White "Uliasz, Katarzyna"]
[Black "Gornisiewicz, Natalia"]
[Result "1-0"]
[ECO "C50"]
[WhiteElo "1670"]
[BlackElo "1287"]
[Annotator "NA RC COMBH"]
[PlyCount "101"]
[EventDate "2023.03.11"]
[EventType "swiss"]
[EventCountry "POL"]
[SourceTitle "playchess.com"]
[Source "ChessBase"]
[SourceQuality "1"]
[TimeControl "40/5400+30:1800+30"]

1. e4 {[%emt 0:00:04]} e5 {[%emt 0:00:12]} 2. Nf3 {[%emt 0:00:06]} Nc6 {[%emt 0:00:06]} 3. Bc4 {[%emt 0:00:07]} Bc5 {[%emt 0:00:07]} 4. O-O {[%emt 0:01:33]} d6 {[%emt 0:00:43]} 5. c3 {[%emt 0:01:56]} Bg4 {[%emt 0:03:43]} 6. d3 {[%emt 0:07:57]} h6 {[%emt 0:04:45]} 7. Nbd2 {[%emt 0:08:17]} Qf6 {[%emt 0:05:56]} 8. b4 {[%emt 0:04:13]} Bb6 {[%emt 0:00:20]} 9. a4 a6 {[%emt 0:01:25]} 10. a5 {[%emt 0:15:52]} Ba7 {[%emt 0:00:10]} 11. b5 {[%emt 0:04:00]} axb5 {[%emt 0:02:12]} 12. Bxb5 {[%emt 0:00:05]} Nge7 {[%emt 0:02:09]} 13. a6 {[%emt 0:05:41]} bxa6 {[%emt 0:06:53]} 14. Rxa6 {[%emt 0:00:41]} Bd7 {[%emt 0:03:25]} 15. Qa4 {[%emt 0:07:23]} O-O {[%emt 0:03:39]} 16. d4 {[%emt 0:04:26]} exd4 {[%emt 0:14:06]} 17. cxd4 {[%emt 0:02:44]} Nb8 {[%emt 0:10:31]} 18. e5 {[%emt 0:10:54]} Qe6 {[%emt 0:06:49]} 19. Bxd7 {[%emt 0:02:43]} Qxd7 {[%emt 0:00:12]} 20. Qxd7 {[%emt 0:01:20]} Nxd7 {[%emt 0:00:07]} 21. exd6 {[%emt 0:00:30]} cxd6 {[%emt 0:00:15]} 22. Rxd6 {[%emt 0:02:08]} Nf6 {[%emt 0:02:00]} 23. Ra6 {[%emt 0:01:12]} Ned5 {[%emt 0:03:51]} 24. Nc4 {[%emt 0:05:26]} Nc3 {[%emt 0:11:21]} 25. Be3 {[%emt 0:02:29]} Ne2+ {[%emt 0:05:07]} 26. Kh1 {[%emt 0:00:08]} Rac8 {[%emt 0:00:59]} 27. Nd6 {[%emt 0:02:41]} Rcd8 {[%emt 0:05:54]} 28. Nb7 {[%emt 0:02:03]} Bxd4 {[%emt 0:03:00]} 29. Nxd4 {[%emt 0:01:12]} Rxd4 {[%emt 0:01:13]} 30. Bxd4 {[%emt 0:00:07]} Nxd4 {[%emt 0:00:04]} 31. h3 {[%emt 0:00:49]} Rb8 {[%emt 0:01:30]} 32. Rd6 {[%emt 0:02:05]} Rxb7 {[%emt 0:01:18]} 33. Rxd4 {[%emt 0:00:05]} g6 {[%emt 0:00:27]} 34. Rc1 {[%emt 0:01:00]} Kg7 {[%emt 0:00:14]} 35. g3 {[%emt 0:00:44]} Ra7 {[%emt 0:00:47]} 36. Kg2 {[%emt 0:00:17]} Ng8 {[%emt 0:00:34]} 37. Rc8 {[%emt 0:00:40]} Ne7 {[%emt 0:00:25]} 38. Rc2 {[%emt 0:01:24]} Nf5 {[%emt 0:00:59]} 39. Rdc4 {[%emt 0:00:13]} g5 {[%emt 0:01:21]} 40. Rc7 {[%emt 0:00:00]} Rxc7 {[%emt 0:00:00]} 41. Rxc7 {[%emt 0:00:38]} Kg6 {[%emt 0:02:39]} 42. Kf3 {[%emt 0:03:41]} h5 {[%emt 0:05:11]} 43. Rc5 {[%emt 0:05:09]} Nh6 {[%emt 0:07:05]} 44. Ke4 {[%emt 0:03:03]} g4 {[%emt 0:05:36]} 45. h4 {[%emt 0:01:16]} f6 {[%emt 0:00:32]} 46. Kd5 {[%emt 0:06:18]} Nf5 {[%emt 0:01:31]} 47. Ra5 {[%emt 0:00:51]} Nh6 {[%emt 0:01:46]} 48. Ke6 {[%emt 0:00:58]} f5 {[%emt 0:06:41]} 49. Ke5 {[%emt 0:01:02]} Nf7+ {[%emt 0:00:39]} 50. Kf4 {[%emt 0:00:22]} Nh6 {[%emt 0:02:06]} 51. Ra6+ 1-0

[Event "Polish Youth G18 Championship 2023"]
[Site "Jastrzebia Gora"]
[Date "2023.03.12"]
[Round "1.15"]
[White "Olszewska, Wiktoria"]
[Black "Lochina, Justyna"]
[Result "0-1"]
[ECO "B44"]
[WhiteElo "1287"]
[BlackElo "1645"]
[Annotator "NA RC COMBH"]
[PlyCount "106"]
[EventDate "2023.03.11"]
[EventType "swiss"]
[EventCountry "POL"]
[SourceTitle "playchess.com"]
[Source "ChessBase"]
[SourceQuality "1"]
[TimeControl "40/5400+30:1800+30"]

1. e4 c5 2. Nf3 e6 3. d4 cxd4 4. Nxd4 Nc6 5. Be3 Nf6 6. Nc3 Bb4 7. f3 d5 8. Nxc6 bxc6 9. Qd3 O-O 10. O-O-O Qa5 11. Bd4 Nd7 12. a3 Be7 13. exd5 cxd5 14. Qe3 Re8 15. f4 Ba6 16. Qg3 Bf8 17. Bxa6 Qxa6 18. Rhf1 Rab8 19. Qf3 Rxb2 20. Nb1 Rb7 21. Rd3 Reb8 22. Nd2 g6 23. Re1 Bg7 24. Bxg7 Kxg7 25. Ree3 Nc5 26. Rc3 Qb6 27. Nb3 Nxb3+ 28. Rxb3 Qd6 29. g3 a5 30. Rxb7 Rxb7 31. Rb3 Rc7 32. Qd3 Qc5 33. Kb2 Rc6 34. Rc3 Qxc3+ 35. Qxc3+ Rxc3 36. Kxc3 Kf6 37. Kb3 Ke7 38. Ka4 Kd6 39. Kxa5 Kc5 40. a4 f6 41. Ka6 e5 42. Kb7 Kb4 43. Kb6 Kxa4 44. Kc5 e4 45. Kd4 Kb4 46. g4 f5 47. h3 h6 48. gxf5 gxf5 49. h4 h5 50. Kxd5 Kc3 51. Ke5 e3 52. Kxf5 e2 53. Kg5 e1=Q 0-1

[Event "Polish Youth G18 Championship 2023"]
[Site "Jastrzebia Gora"]
[Date "2023.03.12"]
[Round "1.16"]
[White "Bugaj, Hanna"]
[Black "Tittor, Weronika"]
[Result "1-0"]
[ECO "A04"]
[WhiteElo "1639"]
[BlackElo "1226"]
[Annotator "NA RC COMBH"]
[PlyCount "79"]
[EventDate "2023.03.11"]
[EventType "swiss"]
[EventCountry "POL"]
[SourceTitle "playchess.com"]
[Source "ChessBase"]
[SourceQuality "1"]
[TimeControl "40/5400+30:1800+30"]

1. Nf3 {[%emt 0:00:04]} c5 {[%emt 0:00:48]} 2. g3 {[%emt 0:00:12]} g6 {[%emt 0:01:57]} 3. Bg2 {[%emt 0:01:42]} d5 {[%emt 0:02:27]} 4. O-O {[%emt 0:02:07]} Bg7 {[%emt 0:02:31]} 5. c4 {[%emt 0:03:57]} Nf6 {[%emt 0:06:04]} 6. cxd5 {[%emt 0:05:04]} Nxd5 {[%emt 0:02:45]} 7. Nc3 {[%emt 0:00:46]} Nc7 {[%emt 0:06:35]} 8. d3 {[%emt 0:03:37]} O-O {[%emt 0:02:35]} 9. Be3 {[%emt 0:01:30]} Ne6 {[%emt 0:03:57]} 10. Qc2 {[%emt 0:11:30]} Nd7 {[%emt 0:07:21]} 11. Rac1 {[%emt 0:06:38]} Rb8 {[%emt 0:02:11]} 12. Rfd1 {[%emt 0:13:09]} Nd4 {[%emt 0:04:24]} 13. Bxd4 {[%emt 0:08:03]} cxd4 {[%emt 0:02:31]} 14. Ne4 {[%emt 0:00:43]} b6 {[%emt 0:05:48]} 15. Qa4 {[%emt 0:04:59]} a5 {[%emt 0:04:26]} 16. Nxd4 {[%emt 0:14:05]} Nc5 {[%emt 0:09:53]} 17. Nxc5 {[%emt 0:00:51]} Qxd4 {[%emt 0:01:20]} 18. Qxd4 {[%emt 0:04:20]} Bxd4 {[%emt 0:00:44]} 19. Na4 {[%emt 0:02:59]} Be6 {[%emt 0:02:31]} 20. e3 {[%emt 0:04:11]} Bg7 {[%emt 0:03:18]} 21. b3 {[%emt 0:00:44]} b5 {[%emt 0:04:36]} 22. Nc5 {[%emt 0:01:18]} Bg4 {[%emt 0:00:32]} 23. Rd2 {[%emt 0:00:56]} Rfd8 {[%emt 0:01:49]} 24. h3 {[%emt 0:02:32]} Bf5 {[%emt 0:00:53]} 25. g4 {[%emt 0:00:20]} Bd7 {[%emt 0:02:09]} 26. Nxd7 {[%emt 0:01:49]} Rxd7 {[%emt 0:00:10]} 27. d4 {[%emt 0:00:31]} e5 {[%emt 0:01:37]} 28. d5 {[%emt 0:01:40]} f5 {[%emt 0:00:53]} 29. Rc5 {[%emt 0:03:51]} Kf7 {[%emt 0:02:41]} 30. e4 {[%emt 0:00:11]} fxe4 {[%emt 0:00:41]} 31. Bxe4 {[%emt 0:00:01]} Bh6 {[%emt 0:00:41]} 32. Rdc2 {[%emt 0:00:17]} Ke7 {[%emt 0:00:39]} 33. Rc6 {[%emt 0:00:24]} a4 {[%emt 0:01:14]} 34. Re6+ {[%emt 0:01:04]} Kf7 {[%emt 0:00:36]} 35. Rxe5 {[%emt 0:00:51]} axb3 {[%emt 0:00:19]} 36. axb3 {[%emt 0:00:02]} Ra8 {[%emt 0:00:25]} 37. Re6 {[%emt 0:00:57]} Ra3 {[%emt 0:00:31]} 38. Rc3 {[%emt 0:00:38]} Ra1+ {[%emt 0:00:50]} 39. Kg2 {[%emt 0:00:05]} Bg7 {[%emt 0:00:56]} 40. Rf3+ {[%emt 0:00:00]} 1-0

[Event "Polish Youth G18 Championship 2023"]
[Site "Jastrzebia Gora"]
[Date "2023.03.12"]
[Round "1.17"]
[White "Bauer, Marika"]
[Black "Mroz, Lena"]
[Result "0-1"]
[ECO "B32"]
[WhiteElo "1183"]
[BlackElo "1635"]
[Annotator "NA RC COMBH"]
[PlyCount "68"]
[EventDate "2023.03.11"]
[EventType "swiss"]
[EventCountry "POL"]
[SourceTitle "playchess.com"]
[Source "ChessBase"]
[SourceQuality "1"]
[TimeControl "40/5400+30:1800+30"]

1. e4 {[%emt 0:00:03]} c5 {[%emt 0:00:05]} 2. Nf3 {[%emt 0:00:17]} Nc6 {[%emt 0:00:13]} 3. d4 {[%emt 0:01:20]} cxd4 {[%emt 0:00:09]} 4. Nxd4 {[%emt 0:00:38]} Qb6 {[%emt 0:00:06]} 5. Nb3 {[%emt 0:05:44]} Nf6 {[%emt 0:00:07]} 6. Nc3 {[%emt 0:05:30]} e6 {[%emt 0:00:09]} 7. Be3 {[%emt 0:03:48]} Qc7 {[%emt 0:00:07]} 8. a3 {[%emt 0:04:59]} a6 {[%emt 0:01:04]} 9. Be2 {[%emt 0:01:29]} Be7 {[%emt 0:00:40]} 10. O-O {[%emt 0:01:17]} O-O {[%emt 0:01:56]} 11. Qd2 {[%emt 0:06:01]} d6 {[%emt 0:02:50]} 12. Rfd1 {[%emt 0:04:02]} b5 {[%emt 0:01:13]} 13. Nd4 {[%emt 0:09:36]} Ne5 {[%emt 0:09:36]} 14. Rac1 {[%emt 0:17:05]} Bb7 {[%emt 0:03:47]} 15. f3 {[%emt 0:03:18]} Rfd8 {[%emt 0:02:18]} 16. Bd3 {[%emt 0:04:29]} Rac8 {[%emt 0:03:11]} 17. Kh1 {[%emt 0:03:12]} Nc4 {[%emt 0:10:17]} 18. Bxc4 {[%emt 0:00:39]} Qxc4 {[%emt 0:00:19]} 19. Qd3 {[%emt 0:02:19]} Qc7 {[%emt 0:25:28]} 20. Qd2 {[%emt 0:03:25]} Nd7 {[%emt 0:01:16]} 21. Qf2 {[%emt 0:02:28]} Ne5 {[%emt 0:04:25]} 22. Nb3 {[%emt 0:03:22]} Nc4 {[%emt 0:00:29]} 23. Rb1 {[%emt 0:00:27]} Nxb2 {[%emt 0:13:28]} 24. Nxb5 {[%emt 0:02:20]} Nxd1 {[%emt 0:00:23]} 25. Rxd1 {[%emt 0:03:01]} axb5 {[%emt 0:00:12]} 26. Bb6 {[%emt 0:00:20]} Qb8 {[%emt 0:08:08]} 27. Bxd8 {[%emt 0:00:31]} Bxd8 {[%emt 0:00:16]} 28. Qd2 {[%emt 0:00:44]} d5 {[%emt 0:00:26]} 29. exd5 {[%emt 0:00:45]} Bxd5 {[%emt 0:00:06]} 30. Nd4 {[%emt 0:01:23]} Bf6 {[%emt 0:00:13]} 31. Qd3 {[%emt 0:00:46]} Bxd4 {[%emt 0:00:15]} 32. Qxd4 {[%emt 0:00:06]} Rxc2 {[%emt 0:00:10]} 33. Qh4 {[%emt 0:01:24]} h6 {[%emt 0:00:34]} 34. Qb4 {[%emt 0:00:23]} Bxf3 {[%emt 0:00:40]} 0-1

[Event "Polish Youth G18 Championship 2023"]
[Site "Jastrzebia Gora"]
[Date "2023.03.12"]
[Round "1.18"]
[White "Jedrzejko, Martyna"]
[Black "Lopusiewicz, Marta"]
[Result "1-0"]
[ECO "B19"]
[WhiteElo "1629"]
[BlackElo "1180"]
[Annotator "NA RC COMBH"]
[PlyCount "143"]
[EventDate "2023.03.11"]
[EventType "swiss"]
[EventCountry "POL"]
[SourceTitle "playchess.com"]
[Source "ChessBase"]
[SourceQuality "1"]
[TimeControl "40/5400+30:1800+30"]

1. e4 {[%emt 0:00:03]} c6 {[%emt 0:00:04]} 2. d4 {[%emt 0:00:14]} d5 {[%emt 0:00:07]} 3. Nd2 {[%emt 0:00:16]} dxe4 {[%emt 0:00:17]} 4. Nxe4 {[%emt 0:00:11]} Bf5 {[%emt 0:00:04]} 5. Ng3 {[%emt 0:00:20]} Bg6 {[%emt 0:00:06]} 6. h4 {[%emt 0:00:17]} h6 {[%emt 0:00:06]} 7. Nf3 {[%emt 0:00:27]} Nd7 {[%emt 0:00:07]} 8. h5 {[%emt 0:00:20]} Bh7 {[%emt 0:00:05]} 9. Bd3 {[%emt 0:00:45]} Bxd3 {[%emt 0:00:07]} 10. Qxd3 {[%emt 0:00:19]} e6 {[%emt 0:00:08]} 11. Bd2 {[%emt 0:00:39]} Ngf6 {[%emt 0:00:18]} 12. O-O-O {[%emt 0:00:57]} Be7 {[%emt 0:00:15]} 13. Kb1 {[%emt 0:01:41]} O-O {[%emt 0:00:15]} 14. Ne4 {[%emt 0:02:51]} Nxe4 {[%emt 0:00:11]} 15. Qxe4 {[%emt 0:00:06]} Nf6 {[%emt 0:00:03]} 16. Qe2 {[%emt 0:01:20]} Qd5 {[%emt 0:00:21]} 17. Ne5 {[%emt 0:03:41]} Qe4 {[%emt 0:00:33]} 18. Qd3 {[%emt 0:13:12]} Rfd8 {[%emt 0:04:39]} 19. Be3 {[%emt 0:07:01]} Bd6 {[%emt 0:17:47]} 20. f3 {[%emt 0:03:32]} Qxd3 {[%emt 0:00:20]} 21. Nxd3 {[%emt 0:00:45]} Nd5 {[%emt 0:05:05]} 22. Bf2 {[%emt 0:00:51]} b5 {[%emt 0:06:32]} 23. Rhe1 {[%emt 0:06:52]} a5 {[%emt 0:02:27]} 24. Ne5 {[%emt 0:02:45]} Bxe5 {[%emt 0:02:39]} 25. dxe5 {[%emt 0:00:16]} a4 {[%emt 0:02:31]} 26. a3 {[%emt 0:01:08]} b4 {[%emt 0:07:48]} 27. axb4 {[%emt 0:01:36]} Rdb8 {[%emt 0:08:09]} 28. Bc5 {[%emt 0:06:08]} Nxb4 {[%emt 0:05:24]} 29. Rd4 {[%emt 0:03:07]} Nd5 {[%emt 0:01:04]} 30. Kc1 {[%emt 0:00:52]} Rb5 {[%emt 0:04:56]} 31. Ba3 {[%emt 0:01:59]} c5 {[%emt 0:04:10]} 32. Rg4 {[%emt 0:06:06]} Nb4 {[%emt 0:04:00]} 33. Ree4 {[%emt 0:02:20]} Rab8 {[%emt 0:03:59]} 34. Rg3 {[%emt 0:06:02]} Kh7 {[%emt 0:06:04]} 35. Rc4 {[%emt 0:05:29]} Nc6 {[%emt 0:02:03]} 36. f4 {[%emt 0:08:26]} Nb4 {[%emt 0:03:54]} 37. c3 {[%emt 0:01:22]} Nd5 {[%emt 0:01:27]} 38. Rxa4 {[%emt 0:00:53]} Ne7 {[%emt 0:02:27]} 39. Ra7 {[%emt 0:02:24]} R8b7 {[%emt 0:02:03]} 40. Rxb7 {[%emt 0:00:00]} Rxb7 {[%emt 0:00:00]} 41. Bxc5 {[%emt 0:00:46]} Nf5 {[%emt 0:01:23]} 42. Rd3 {[%emt 0:00:30]} g6 {[%emt 0:02:39]} 43. hxg6+ {[%emt 0:00:25]} Kxg6 {[%emt 0:00:35]} 44. g4 {[%emt 0:02:30]} Ng7 {[%emt 0:00:48]} 45. b4 {[%emt 0:00:23]} h5 {[%emt 0:01:30]} 46. gxh5+ {[%emt 0:02:50]} Nxh5 {[%emt 0:00:16]} 47. Be3 {[%emt 0:00:58]} Kf5 {[%emt 0:00:28]} 48. Rd4 {[%emt 0:01:04]} Ng3 {[%emt 0:00:34]} 49. Kb2 {[%emt 0:01:50]} Nf1 {[%emt 0:03:47]} 50. Bf2 {[%emt 0:00:46]} Nh2 {[%emt 0:00:24]} 51. Kc2 {[%emt 0:04:02]} Nf3 {[%emt 0:00:59]} 52. Rc4 {[%emt 0:01:16]} Kg4 {[%emt 0:04:03]} 53. Be3 {[%emt 0:01:40]} Kf5 {[%emt 0:01:57]} 54. Kb3 {[%emt 0:00:48]} Ne1 {[%emt 0:00:55]} 55. Ka4 {[%emt 0:03:16]} Nd3 {[%emt 0:02:19]} 56. Ka5 {[%emt 0:01:02]} Nb2 {[%emt 0:01:41]} 57. Rc6 {[%emt 0:00:28]} Nd1 {[%emt 0:01:33]} 58. Bd4 {[%emt 0:02:35]} Nb2 {[%emt 0:02:27]} 59. b5 {[%emt 0:01:34]} Nd3 {[%emt 0:01:31]} 60. b6 {[%emt 0:01:42]} Nxf4 {[%emt 0:00:33]} 61. Ka6 {[%emt 0:00:25]} Rb8 {[%emt 0:01:25]} 62. b7 {[%emt 0:01:33]} Nd5 {[%emt 0:01:25]} 63. Rc8 {[%emt 0:01:13]} Rxb7 {[%emt 0:00:26]} 64. Kxb7 {[%emt 0:00:05]} Kg6 {[%emt 0:00:36]} 65. c4 {[%emt 0:00:13]} Ne7 {[%emt 0:00:41]} 66. Rd8 {[%emt 0:00:27]} Kf5 {[%emt 0:00:51]} 67. c5 {[%emt 0:00:16]} Nd5 {[%emt 0:00:17]} 68. c6 {[%emt 0:00:33]} Ke4 {[%emt 0:00:14]} 69. c7 {[%emt 0:00:37]} Nxc7 {[%emt 0:00:05]} 70. Kxc7 {[%emt 0:00:04]} Kf5 {[%emt 0:00:06]} 71. Rd7 {[%emt 0:00:18]} Kg6 {[%emt 0:00:09]} 72. Kd8 {[%emt 0:00:04]} 1-0

[Event "Polish Youth G18 Championship 2023"]
[Site "Jastrzebia Gora"]
[Date "2023.03.12"]
[Round "1.19"]
[White "Pietruszka, Julia"]
[Black "Skolska, Emilia"]
[Result "0-1"]
[ECO "C54"]
[WhiteElo "1151"]
[BlackElo "1586"]
[Annotator "NA RC COMBH"]
[PlyCount "78"]
[EventDate "2023.03.11"]
[EventType "swiss"]
[EventCountry "POL"]
[SourceTitle "playchess.com"]
[Source "ChessBase"]
[SourceQuality "1"]
[TimeControl "40/5400+30:1800+30"]

1. e4 {[%emt 0:00:02]} e5 {[%emt 0:00:06]} 2. Nf3 {[%emt 0:00:09]} Nc6 {[%emt 0:00:10]} 3. Bc4 {[%emt 0:00:10]} Bc5 {[%emt 0:00:09]} 4. c3 {[%emt 0:00:12]} Nf6 {[%emt 0:00:14]} 5. d4 {[%emt 0:00:19]} exd4 {[%emt 0:00:21]} 6. cxd4 {[%emt 0:00:07]} Bb4+ {[%emt 0:00:10]} 7. Bd2 {[%emt 0:00:35]} Bxd2+ {[%emt 0:00:16]} 8. Nbxd2 {[%emt 0:00:08]} d5 {[%emt 0:00:13]} 9. exd5 {[%emt 0:00:07]} Nxd5 {[%emt 0:00:05]} 10. O-O {[%emt 0:00:11]} O-O {[%emt 0:00:27]} 11. Re1 {[%emt 0:02:30]} Nce7 {[%emt 0:02:58]} 12. Rc1 {[%emt 0:06:24]} c6 {[%emt 0:02:02]} 13. Nb3 {[%emt 0:06:28]} Qb6 {[%emt 0:08:58]} 14. h3 {[%emt 0:05:31]} Bf5 {[%emt 0:06:54]} 15. Ne5 {[%emt 0:04:18]} Rad8 {[%emt 0:04:51]} 16. Bd3 {[%emt 0:13:10]} Bxd3 {[%emt 0:06:34]} 17. Qxd3 {[%emt 0:02:01]} Nf4 {[%emt 0:06:45]} 18. Qg3 {[%emt 0:08:06]} Ned5 {[%emt 0:02:05]} 19. Nc4 {[%emt 0:04:09]} Qc7 {[%emt 0:04:34]} 20. Ne3 {[%emt 0:04:42]} Nxe3 {[%emt 0:11:52]} 21. Rxe3 {[%emt 0:00:51]} Qd6 {[%emt 0:02:12]} 22. Re4 {[%emt 0:04:01]} Ne6 {[%emt 0:03:57]} 23. Qxd6 {[%emt 0:02:40]} Rxd6 {[%emt 0:00:06]} 24. Nc5 {[%emt 0:09:38]} b6 {[%emt 0:06:36]} 25. Nxe6 {[%emt 0:02:06]} fxe6 {[%emt 0:00:06]} 26. Rce1 {[%emt 0:01:23]} Kf7 {[%emt 0:01:55]} 27. Rf4+ {[%emt 0:01:55]} Ke7 {[%emt 0:00:08]} 28. Rxf8 {[%emt 0:00:31]} Kxf8 {[%emt 0:00:06]} 29. Re4 {[%emt 0:01:10]} Ke7 {[%emt 0:02:02]} 30. b4 {[%emt 0:02:10]} Rd5 {[%emt 0:03:49]} 31. g4 {[%emt 0:03:38]} a5 {[%emt 0:04:04]} 32. a3 {[%emt 0:02:17]} axb4 {[%emt 0:00:21]} 33. axb4 {[%emt 0:00:07]} Rb5 {[%emt 0:00:17]} 34. f4 {[%emt 0:02:43]} Kd6 {[%emt 0:00:27]} 35. Re5 {[%emt 0:04:38]} Rxb4 {[%emt 0:00:24]} 36. f5 {[%emt 0:01:09]} exf5 {[%emt 0:01:19]} 37. Rxf5 {[%emt 0:02:55]} Rxd4 {[%emt 0:01:21]} 38. Rf7 {[%emt 0:00:30]} c5 {[%emt 0:02:09]} 39. Rxg7 {[%emt 0:01:14]} c4 {[%emt 0:00:12]} 0-1

[Event "Polish Youth G18 Championship 2023"]
[Site "Jastrzebia Gora"]
[Date "2023.03.12"]
[Round "1.20"]
[White "Bialek, Alicja"]
[Black "Nagly, Malgorzata"]
[Result "1-0"]
[ECO "C00"]
[WhiteElo "1576"]
[BlackElo "1041"]
[Annotator "NA RC COMBH"]
[PlyCount "60"]
[EventDate "2023.03.11"]
[EventType "swiss"]
[EventCountry "POL"]
[SourceTitle "playchess.com"]
[Source "ChessBase"]
[SourceQuality "1"]
[TimeControl "40/5400+30:1800+30"]

1. e4 {[%emt 0:00:03]} e6 {[%emt 0:00:01]} 2. d4 {[%emt 0:00:04]} d5 {[%emt 0:00:09]} 3. Bd3 {[%emt 0:00:21]} c5 {[%emt 0:02:11]} 4. exd5 {[%emt 0:00:54]} exd5 {[%emt 0:00:55]} 5. Nf3 {[%emt 0:01:05]} Nf6 {[%emt 0:05:38]} 6. O-O {[%emt 0:02:13]} c4 {[%emt 0:07:02]} 7. Re1+ {[%emt 0:02:25]} Be7 {[%emt 0:01:13]} 8. Bf1 {[%emt 0:00:41]} O-O {[%emt 0:02:08]} 9. b3 {[%emt 0:02:22]} b5 {[%emt 0:07:34]} 10. Ne5 {[%emt 0:12:51]} Re8 {[%emt 0:08:45]} 11. g3 {[%emt 0:05:24]} Qb6 {[%emt 0:03:15]} 12. a4 {[%emt 0:28:55]} Nc6 {[%emt 0:06:21]} 13. Nxc6 {[%emt 0:03:31]} Qxc6 {[%emt 0:01:08]} 14. axb5 {[%emt 0:00:38]} Qxb5 {[%emt 0:00:37]} 15. bxc4 {[%emt 0:05:36]} dxc4 {[%emt 0:04:52]} 16. Nc3 {[%emt 0:05:00]} Qb4 {[%emt 0:10:06]} 17. Bd2 {[%emt 0:01:15]} Rd8 {[%emt 0:17:15]} 18. Bg2 {[%emt 0:11:58]} Rb8 {[%emt 0:09:32]} 19. Nd5 {[%emt 0:08:26]} Qb5 {[%emt 0:09:06]} 20. Nxe7+ {[%emt 0:00:11]} Kf8 {[%emt 0:00:04]} 21. Nc6 {[%emt 0:00:45]} Be6 {[%emt 0:02:22]} 22. Nxb8 {[%emt 0:00:34]} Qxb8 {[%emt 0:00:12]} 23. c3 {[%emt 0:03:32]} Qc7 {[%emt 0:01:00]} 24. Qa4 {[%emt 0:00:47]} Nd7 {[%emt 0:00:29]} 25. Bf4 {[%emt 0:00:29]} Qc8 {[%emt 0:00:30]} 26. Qxa7 {[%emt 0:01:17]} Kg8 {[%emt 0:00:34]} 27. Bb7 {[%emt 0:00:45]} Qxb7 {[%emt 0:00:30]} 28. Qxb7 {[%emt 0:00:07]} Kf8 {[%emt 0:00:12]} 29. Bd6+ {[%emt 0:00:17]} Kg8 {[%emt 0:00:37]} 30. Ra8 {[%emt 0:00:11]} Rxa8 1-0